bitfinex/quotes_SOLUSD_20220118
["timestamp","ask_amount","ask_price","bid_price","bid_amount"]
[1642511641058,43.88109473,136.51,136.47,0.25]
[1642511641460,43.88109473,136.51,136.44,2.08330824]
[1642511641690,13.9225,136.5,136.44,2.08330824]
[1642511641861,73.17,136.49,136.44,2.08330824]
[1642511642161,2.931,136.48,136.44,2.08330824]
[1642511642362,48.06205078,136.47,136.44,2.08330824]
[1642511642760,48.06205078,136.47,136.42,2.08330824]
[1642511642960,48.06205078,136.47,136.42,8.08330824]
[1642511643561,59.05815078,136.47,136.43,0.25]
[1642511643762,59.05815078,136.47,136.42,2.08330824]
[1642511645063,59.05815078,136.47,136.4,64.67175458]
[1642511645263,59.05815078,136.47,136.41,0.25]
[1642511646963,73.17,136.46,136.4,2.08330824]
[1642511647164,10.9987,136.45,136.4,2.08330824]
[1642511648062,39.94305223,136.44,136.4,2.08330824]
[1642511648262,10.9989,136.43,136.41,0.25]
[1642511648864,10.9989,136.43,136.4,2.08330824]
[1642511649465,10.9989,136.43,136.41,3.03219997]
[1642511649665,42.87505223,136.44,136.39,2.08330824]
[1642511649867,39.94305223,136.44,136.39,2.08330824]
[1642511650266,39.94305223,136.44,136.4,0.25]
[1642511652769,39.94305223,136.44,136.39,2.08330824]
[1642511652969,39.94305223,136.44,136.4,0.25]
[1642511654874,50.94025223,136.44,136.4,0.25]
[1642511655273,50.94025223,136.44,136.39,2.08330824]
[1642511655477,50.94025223,136.44,136.4,0.25]
[1642511655673,50.94025223,136.44,136.39,2.08330824]
[1642511657406,50.94025223,136.44,136.38,2.08330824]
[1642511658107,11.0004,136.42,136.38,2.08330824]
[1642511658307,11.0004,136.42,136.37,2.08330824]
[1642511658508,42.90643869,136.41,136.37,2.08330824]
[1642511659308,11.0007,136.4,136.37,1.31542662]
[1642511659508,2.932,136.39,136.36,1.31542662]
[1642511659711,2.932,136.4,136.36,1.31542662]
[1642511660510,11.0023,136.38,136.34,27.59591311]
[1642511660812,11.0023,136.38,136.35,0.25]
[1642511661014,11.0023,136.38,136.36,6.06439994]
[1642511661515,46.41256019,136.38,136.35,0.25]
[1642511661711,2.932,136.41,136.34,0.28791311]
[1642511662110,36.6755,136.4,136.34,0.28791311]
[1642511662511,11.0016,136.38,136.34,0.28791311]
[1642511664012,11.0016,136.38,136.34,0.03791311]
[1642511665315,11.0016,136.38,136.34,0.28791311]
[1642511666516,13.933,136.39,136.34,0.28791311]
[1642511666914,13.933,136.39,136.34,0.03791311]
[1642511666915,11.001,136.39,136.34,0.03791311]
[1642511667114,2.932,136.41,136.34,0.03791311]
[1642511667945,2.932,136.41,136.35,41.30970968]
[1642511668115,11.0003,136.4,136.36,6.0]
[1642511668315,11.0003,136.4,136.36,6.25]
[1642511669515,11.0003,136.4,136.35,41.30970968]
[1642511671824,2.932,136.39,136.35,41.30970968]
[1642511672022,11.0016,136.39,136.35,41.30970968]
[1642511672623,11.0016,136.39,136.34,22.65811311]
[1642511672823,11.0016,136.39,136.35,0.25]
[1642511673628,58.33787776,136.39,136.35,0.25]
[1642511673826,58.33787776,136.39,136.34,22.65811311]
[1642511674928,58.33787776,136.39,136.34,61.19077438]
[1642511675129,11.0016,136.39,136.34,61.19077438]
[1642511676351,11.0016,136.39,136.35,0.25]
[1642511686168,11.0016,136.39,136.34,0.03791311]
[1642511688569,2.932,136.38,136.34,0.03791311]
[1642511688771,47.40906678,136.37,136.34,0.03791311]
[1642511688973,58.41276678,136.37,136.34,0.03791311]
[1642511689573,58.41276678,136.37,136.32,0.21616435]
[1642511689774,58.41276678,136.37,136.31,59.1934821]
[1642511690572,11.0037,136.37,136.31,59.1934821]
[1642511691172,11.0037,136.37,136.32,0.25]
[1642511692973,48.06764079,136.36,136.32,0.25]
[1642511694072,11.0037,136.37,136.32,0.25]
[1642511697479,11.0015,136.39,136.33,2.932]
[1642511697681,2.932,136.42,136.33,2.932]
[1642511697879,1.67103418,136.43,136.34,25.1398]
[1642511698079,2.932,136.42,136.35,2.932]
[1642511698279,48.08338636,136.43,136.36,47.33444206]
[1642511698480,11.0,136.41,136.36,47.33444206]
[1642511701090,11.0,136.41,136.36,0.25]
[1642511701487,11.0,136.41,136.35,2.932]
[1642511701705,11.0,136.41,136.34,24.8898]
[1642511701914,2.932,136.4,136.34,24.8898]
[1642511702109,48.43610765,136.39,136.34,24.8898]
[1642511703811,51.36810765,136.39,136.34,24.8898]
[1642511704311,124.53810765,136.39,136.3,2.932]
[1642511704511,16.48,136.38,136.3,2.932]
[1642511704713,11.0063,136.36,136.3,2.932]
[1642511705112,11.0063,136.36,136.31,43.45964136]
[1642511706312,11.0028,136.38,136.31,43.45964136]
[1642511706513,11.0028,136.38,136.32,3.182]
[1642511708616,11.0013,136.4,136.32,3.182]
[1642511708816,6.74234384,136.42,136.32,3.182]
[1642511709016,2.932,136.42,136.32,13.662]
[1642511709519,2.932,136.42,136.37,0.19451497]
[1642511709718,26.7368,136.42,136.37,0.38902994]
[1642511710419,37.7366,136.42,136.37,0.38902994]
[1642511712620,35.49787109,136.41,136.37,0.38902994]
[1642511712821,11.0016,136.4,136.37,0.38902994]
[1642511714525,11.0016,136.4,136.32,2.932]
[1642511714722,3.182,136.39,136.32,2.932]
[1642511714923,11.0057,136.37,136.32,2.932]
[1642511715526,11.0057,136.37,136.32,46.95273205]
[1642511715824,11.0057,136.37,136.32,44.02073205]
[1642511716727,13.9377,136.37,136.32,44.02073205]
[1642511717726,13.9377,136.37,136.3,22.9152]
[1642511717928,13.9377,136.37,136.31,0.25]
[1642511719128,24.4177,136.37,136.3,0.25]
[1642511719325,24.4177,136.37,136.28,25.9775]
[1642511719326,64.0,136.35,136.25,4.14652605]
[1642511719528,64.0,136.31,136.25,0.97840984]
[1642511719726,13.665,136.3,136.25,0.97840984]
[1642511719927,19.665,136.3,136.25,0.97840984]
[1642511720130,73.17,136.29,136.25,0.97840984]
[1642511720331,13.415,136.28,136.25,0.97840984]
[1642511720527,11.013,136.27,136.22,5.05206642]
[1642511720729,11.013,136.27,136.2,39.47792396]
[1642511721130,11.013,136.27,136.21,0.25]
[1642511721731,11.013,136.27,136.22,2.935]
[1642511721934,11.013,136.27,136.23,40.33346189]
[1642511722136,11.013,136.27,136.23,40.58346189]
[1642511722738,10.48,136.31,136.23,40.58346189]
[1642511722937,10.48,136.33,136.24,2.935]
[1642511723335,10.48,136.33,136.25,0.25]
[1642511723535,47.1765,136.33,136.26,2.934]
[1642511723738,47.1765,136.33,136.27,45.2549997]
[1642511724439,11.0085,136.31,136.27,45.2549997]
[1642511725248,11.0085,136.31,136.27,0.25]
[1642511725440,11.0085,136.31,136.26,0.25]
[1642511725842,11.0085,136.31,136.25,3.185]
[1642511726242,11.0085,136.31,136.26,39.55618074]
[1642511726645,11.0085,136.31,136.27,0.25]
[1642511727049,13.415,136.35,136.27,0.25]
[1642511727250,2.934,136.37,136.28,2.934]
[1642511727647,2.934,136.37,136.29,0.25]
[1642511727849,2.934,136.37,136.3,2.934]
[1642511728064,196.25314818,136.38,136.3,2.934]
[1642511728266,193.31914818,136.38,136.31,0.25]
[1642511728463,2.932,136.39,136.31,0.25]
[1642511728866,11.0035,136.37,136.31,0.25]
[1642511729065,37.58288282,136.37,136.29,42.89650652]
[1642511729265,2.932,136.36,136.26,2.932]
[1642511729466,2.932,136.36,136.22,49.9518]
[1642511729767,6.0,136.35,136.27,6.0]
[1642511729965,13.9407,136.34,136.24,22.5918]
[1642511730167,11.0067,136.34,136.24,22.5918]
[1642511730370,2.934,136.33,136.25,46.89166353]
[1642511730569,2.934,136.35,136.25,46.89166353]
[1642511730767,2.934,136.35,136.26,2.934]
[1642511731169,11.0067,136.33,136.27,6.0]
[1642511731367,11.0067,136.33,136.26,2.934]
[1642511731567,11.0067,136.33,136.25,43.82566353]
[1642511731770,2.934,136.32,136.25,40.89166353]
[1642511732167,43.23624305,136.33,136.25,40.89166353]
[1642511732370,2.934,136.32,136.25,40.89166353]
[1642511732569,43.23624305,136.33,136.25,43.82666353]
[1642511732769,11.0091,136.3,136.21,2.935]
[1642511733069,2.935,136.29,136.2,26.1277]
[1642511733271,2.935,136.3,136.2,26.1277]
[1642511733480,2.935,136.3,136.2,2.935]
[1642511733669,2.935,136.3,136.21,40.72853799]
[1642511733670,0.25,136.29,136.21,40.72853799]
[1642511734069,2.935,136.28,136.21,40.72853799]
[1642511734573,11.0116,136.27,136.21,40.72853799]
[1642511735780,49.44360494,136.27,136.21,40.72853799]
[1642511735970,49.44360494,136.27,136.19,2.935]
[1642511736171,49.44360494,136.27,136.2,0.25]
[1642511736372,49.44360494,136.27,136.19,2.935]
[1642511736571,55.68960494,136.27,136.19,2.935]
[1642511736772,9.186,136.26,136.19,2.935]
[1642511736973,23.14594463,136.23,136.16,41.11243738]
[1642511737173,3.186,136.22,136.16,41.11243738]
[1642511737372,3.186,136.22,136.15,0.27062657]
[1642511737872,11.0201,136.21,136.15,0.27062657]
[1642511738274,11.0201,136.21,136.16,2.936]
[1642511738677,13.416,136.27,136.17,0.25]
[1642511738974,11.0146,136.24,136.18,2.936]
[1642511739175,11.0146,136.24,136.19,0.25]
[1642511739577,13.416,136.27,136.19,0.25]
[1642511739776,10.48,136.27,136.19,0.25]
[1642511740182,2.936,136.29,136.19,0.25]
[1642511740379,2.935,136.3,136.19,10.73]
[1642511740583,24.5307,136.31,136.19,10.73]
[1642511740782,24.5307,136.31,136.2,38.20421952]
[1642511741081,24.5307,136.31,136.21,2.935]
[1642511741082,11.0106,136.29,136.21,2.935]
[1642511741285,11.0106,136.29,136.21,3.185]
[1642511742684,11.0099,136.3,136.21,3.185]
[1642511743482,11.0099,136.3,136.21,14.1945]
[1642511744081,13.9438,136.31,136.21,14.1945]
[1642511744283,13.9438,136.31,136.21,19.5485]
[1642511744484,2.935,136.31,136.22,6.0]
[1642511744684,2.935,136.33,136.24,11.007]
[1642511744883,2.935,136.33,136.24,16.905]
[1642511745085,2.935,136.33,136.25,0.25]
[1642511745286,12.4525558,136.34,136.25,0.25]
[1642511746084,12.4525558,136.34,136.24,6.25]
[1642511746483,12.4525558,136.34,136.25,11.0063]
[1642511746714,12.4525558,136.34,136.26,41.63994313]
[1642511746886,12.4525558,136.34,136.26,44.57394313]
[1642511748384,15.3865558,136.34,136.26,44.57394313]
[1642511748786,12.4525558,136.34,136.26,55.57954313]
[1642511749089,1.4462558,136.34,136.26,55.57954313]
[1642511749887,1.4462558,136.34,136.26,66.05954313]
[1642511750087,1.4462558,136.34,136.27,6.0]
[1642511750288,2.934,136.36,136.29,11.001]
[1642511750688,2.934,136.36,136.3,0.25]
[1642511751687,2.934,136.36,136.29,49.05068808]
[1642511751889,2.934,136.36,136.29,56.81082648]
[1642511752288,2.934,136.36,136.32,37.42589806]
[1642511752488,2.932,136.39,136.32,37.42589806]
[1642511752688,366.60819019,136.4,136.32,37.42589806]
[1642511752891,2.932,136.39,136.32,37.42589806]
[1642511753293,2.932,136.42,136.33,0.25]
[1642511753491,11.0023,136.39,136.33,0.25]
[1642511754305,2.932,136.42,136.33,0.25]
[1642511755597,17.001,136.41,136.33,0.25]
[1642511755795,2.932,136.4,136.33,0.25]
[1642511755993,2.932,136.4,136.33,3.182]
[1642511756394,2.932,136.42,136.33,3.182]
[1642511756994,2.932,136.42,136.33,14.1818]
[1642511758096,13.9316,136.42,136.33,14.1818]
[1642511758898,10.9996,136.42,136.33,14.1818]
[1642511764431,4.60303418,136.43,136.34,6.0]
[1642511764629,1.67103418,136.43,136.36,10.9965]
[1642511764831,1.67103418,136.43,136.35,13.412]
[1642511764832,1.67103418,136.43,136.35,10.48]
[1642511765028,2.932,136.42,136.3,2.932]
[1642511765433,21.4809,136.41,136.3,2.932]
[1642511765631,2.932,136.4,136.3,2.932]
[1642511765834,48.13157628,136.39,136.3,2.932]
[1642511766031,8.932,136.38,136.3,2.932]
[1642511766230,10.48,136.37,136.3,2.932]
[1642511766430,10.48,136.37,136.26,45.67735287]
[1642511766431,28.30462909,136.36,136.26,45.67735287]
[1642511766631,11.0115,136.33,136.26,45.67735287]
[1642511766832,2.934,136.32,136.26,45.67735287]
[1642511767031,8.934,136.32,136.26,45.67735287]
[1642511767431,8.934,136.32,136.25,5.05206642]
[1642511767432,19.414,136.32,136.25,5.05206642]
[1642511767831,11.0113,136.31,136.18,5.05206642]
[1642511768033,8.935,136.3,136.18,5.05206642]
[1642511768232,10.48,136.29,136.18,5.05206642]
[1642511768534,36.45547012,136.28,136.19,34.82788352]
[1642511768731,19.416,136.28,136.19,34.82788352]
[1642511768933,11.015,136.27,136.19,34.82788352]
[1642511769232,17.015,136.27,136.2,3.186]
[1642511769736,16.985,136.27,136.2,3.186]
[1642511770631,10.985,136.27,136.2,3.186]
[1642511770933,10.48,136.31,136.2,11.155]
[1642511771136,13.415,136.34,136.2,11.415]
[1642511772334,13.415,136.34,136.21,10.1703803]
[1642511772634,11.0099,136.3,136.22,41.96240401]
[1642511772932,11.0099,136.3,136.22,42.21240401]
[1642511773635,11.0099,136.3,136.22,53.22090401]
[1642511773834,11.0082,136.32,136.22,53.22090401]
[1642511774043,36.6955,136.33,136.22,53.22090401]
[1642511775036,11.0086,136.31,136.22,42.21240401]
[1642511775236,11.0086,136.31,136.23,6.0]
[1642511775535,11.0086,136.31,136.22,42.21240401]
[1642511775738,11.0086,136.31,136.23,6.0]
[1642511775940,11.0086,136.31,136.22,42.21240401]
[1642511776141,11.0086,136.31,136.23,6.0]
[1642511776339,11.0086,136.31,136.24,0.25]
[1642511776537,11.0086,136.31,136.22,42.21240401]
[1642511777538,11.0086,136.31,136.23,6.0]
[1642511777739,11.0086,136.31,136.22,42.21240401]
[1642511777740,11.0086,136.31,136.24,0.25]
[1642511777937,11.0086,136.31,136.22,42.21240401]
[1642511778339,11.0086,136.31,136.22,53.22110401]
[1642511778540,11.0086,136.31,136.22,126.39110401]
[1642511779541,11.0086,136.31,136.23,2.08516702]
[1642511779742,11.0086,136.31,136.24,3.185]
[1642511779940,11.0086,136.31,136.25,45.99920706]
[1642511780341,11.0086,136.31,136.26,0.25]
[1642511782445,1.99072992,136.32,136.26,0.25]
[1642511784445,12.99842992,136.32,136.26,0.25]
[1642511785849,11.0077,136.32,136.26,0.25]
[1642511786450,49.90019968,136.32,136.26,0.25]
[1642511786851,11.0077,136.32,136.26,0.25]
[1642511787850,48.54504791,136.32,136.26,0.25]
[1642511789979,4.92572992,136.33,136.26,0.25]
[1642511790182,6.0,136.32,136.26,0.25]
[1642511793983,38.37613401,136.32,136.26,0.25]
[1642511794285,3.184,136.31,136.23,2.08516702]
[1642511794686,6.0,136.3,136.23,2.08516702]
[1642511794986,13.9458,136.29,136.23,2.08516702]
[1642511795190,72.30887136,136.29,136.23,47.73632729]
[1642511795386,6.0,136.28,136.23,45.65116027]
[1642511795988,11.0131,136.27,136.23,45.65116027]
[1642511796189,6.0,136.28,136.24,2.935]
[1642511796392,6.0,136.28,136.23,45.65116027]
[1642511796689,6.0,136.31,136.24,0.25]
[1642511796889,2.935,136.3,136.24,0.25]
[1642511797091,11.0106,136.28,136.24,0.25]
[1642511797890,11.0106,136.28,136.23,45.65116027]
[1642511799294,11.0106,136.28,136.24,0.25]
[1642511802896,6.0,136.29,136.24,0.25]
[1642511803696,0.25,136.28,136.2,2.08516702]
[1642511803898,11.0143,136.26,136.2,2.08516702]
[1642511804097,8.936,136.25,136.21,2.08516702]
[1642511804496,10.72505272,136.25,136.21,2.08516702]
[1642511804697,37.51726602,136.24,136.21,2.08516702]
[1642511804896,2.936,136.23,136.21,2.08516702]
[1642511805102,11.0169,136.22,136.21,2.08516702]
[1642511805503,11.0169,136.22,136.16,2.08516702]
[1642511805799,11.0169,136.22,136.16,46.10517757]
[1642511806399,42.49193935,136.21,136.16,2.08516702]
[1642511806601,11.0169,136.2,136.15,2.35579359]
[1642511807226,6.0,136.19,136.15,2.35579359]
[1642511807427,37.51726602,136.18,136.15,2.35579359]
[1642511807631,37.51726602,136.18,136.15,0.27062657]
[1642511807827,2.936,136.17,136.15,0.27062657]
[1642511808027,82.106,136.17,136.15,0.27062657]
[1642511809227,11.0217,136.16,136.15,0.27062657]
[1642511810429,11.0183,136.18,136.15,0.27062657]
[1642511811930,54.3696343,136.18,136.15,0.27062657]
[1642511812329,1.4467113,136.17,136.15,0.27062657]
[1642511813133,12.4653113,136.17,136.15,0.27062657]
[1642511814538,13.9434156,136.17,136.15,0.27062657]
[1642511819944,2.9248156,136.17,136.15,0.27062657]
[1642511821746,13.9434156,136.17,136.15,0.27062657]
[1642511823049,2.9248156,136.17,136.16,6.06439994]
[1642511823246,2.9248156,136.17,136.16,6.31439994]
[1642511823850,2.9248156,136.17,136.16,0.25]
[1642511824448,2.9248156,136.17,136.15,0.27062657]
[1642511825049,2.9248156,136.17,136.15,3.30282654]
[1642511825349,2.9248156,136.17,136.15,0.27062657]
[1642511825952,13.9434156,136.17,136.15,0.27062657]
[1642511826851,13.9567,136.16,136.15,0.27062657]
[1642511827652,11.0207,136.16,136.15,0.27062657]
[1642511829655,48.0207,136.16,136.15,0.27062657]
[1642511829858,54.0207,136.16,136.15,0.27062657]
[1642511830661,64.5007,136.16,136.15,0.27062657]
[1642511830857,57.0,136.15,136.08,2.936]
[1642511831060,57.0,136.15,136.07,4.17427268]
[1642511831061,11.0258,136.13,136.07,4.17427268]
[1642511831358,13.669,136.12,136.07,4.17427268]
[1642511831558,21.45805272,136.12,136.07,2.61467268]
[1642511831758,41.94795721,136.11,136.06,0.13833488]
[1642511832058,19.419,136.1,136.06,0.13833488]
[1642511832258,11.0282,136.09,136.04,0.14300756]
[1642511832457,11.0282,136.09,135.99,448.01079614]
[1642511832458,73.17,136.07,136.0,310.676077]
[1642511832660,130.97,136.01,136.0,99.208177]
[1642511832859,223.887,136.01,135.95,19.3213636]
[1642511833059,9.191,136.0,135.95,13.3213636]
[1642511833261,30.49049477,135.99,135.95,13.3213636]
[1642511833562,8.941,135.98,135.95,13.3213636]
[1642511833858,10.48,135.97,135.95,13.3213636]
[1642511834058,8.942,135.96,135.95,13.3213636]
[1642511834258,16.48,135.96,135.95,12.8213636]
[1642511834460,10.48,135.96,135.95,12.8213636]
[1642511834658,69.20109105,135.96,135.91,2.942]
[1642511834858,21.5181,135.96,135.9,0.1]
[1642511835560,10.48,135.96,135.91,2.942]
[1642511835961,10.48,135.96,135.92,41.74987123]
[1642511836361,111.11572253,136.01,135.93,64.0]
[1642511836560,47.5137,136.07,135.93,64.0]
[1642511836561,10.48,136.03,135.96,0.31873968]
[1642511836763,2.941,136.07,135.97,2.941]
[1642511836962,10.48,136.07,135.97,2.941]
[1642511837160,10.48,136.07,135.98,0.25]
[1642511837359,10.48,136.07,135.99,13.9671]
[1642511837360,11.0274,136.07,135.99,13.9671]
[1642511837560,48.47058135,136.05,135.99,11.0271]
[1642511838361,48.47058135,136.05,136.0,14.2162]
[1642511839163,2.94,136.1,136.0,14.2162]
[1642511839563,2.94,136.1,136.01,10.48]
[1642511839763,2.939,136.16,136.03,11.0238]
[1642511840166,46.12374055,136.15,136.04,10.73]
[1642511840369,2.939,136.14,136.04,10.73]
[1642511840763,11.0233,136.12,136.05,38.79656035]
[1642511840964,35.40739113,136.11,136.05,38.79656035]
[1642511841363,35.40739113,136.11,136.04,21.7533]
[1642511842262,34.90739113,136.11,136.04,21.7533]
[1642511842474,1.4467113,136.06,136.04,21.7533]
[1642511842664,1.4467113,136.06,136.05,6.06439994]
[1642511843365,2.9248156,136.06,136.05,6.06439994]
[1642511843867,2.9248156,136.06,136.05,16.54439994]
[1642511844067,0.80741174,136.06,136.05,25.73339994]
[1642511844268,13.9612,136.14,136.06,60.0]
[1642511844467,2.939,136.17,136.07,10.48]
[1642511844665,11.2332,136.25,136.07,19.668]
[1642511844666,2.938,136.2,136.07,19.668]
[1642511844867,2.938,136.2,136.07,21.47716121]
[1642511845066,2.938,136.2,136.08,1.54916121]
[1642511845266,59.48008581,136.19,136.11,11.0175]
[1642511845468,48.46168581,136.19,136.12,2.936]
[1642511845666,48.46168581,136.19,136.13,10.48]
[1642511846469,2.936,136.18,136.13,10.48]
[1642511846666,2.936,136.18,136.09,10.48]
[1642511847268,2.936,136.18,136.1,42.25549051]
[1642511847467,2.936,136.18,136.09,10.48]
[1642511847468,3.86344049,136.17,136.09,10.48]
[1642511847672,2.938,136.16,136.09,10.48]
[1642511848073,13.9588,136.16,136.09,10.48]
[1642511848471,11.0208,136.16,136.1,39.34097814]
[1642511848672,2.938,136.18,136.1,39.34097814]
[1642511848871,1.938,136.18,136.11,10.73]
[1642511849271,1.938,136.18,136.11,10.48]
[1642511850471,12.957,136.18,136.11,10.48]
[1642511851072,12.957,136.18,136.12,0.25]
[1642511851272,13.418,136.25,136.12,0.25]
[1642511851472,2.436,136.2,136.12,0.25]
[1642511851674,11.0168,136.21,136.12,11.2668]
[1642511851873,11.0168,136.21,136.13,2.936]
[1642511852078,11.0168,136.21,136.13,20.245]
[1642511852276,39.661,136.24,136.14,0.25]
[1642511852277,37.18089629,136.23,136.14,0.25]
[1642511852476,2.936,136.22,136.14,0.25]
[1642511852878,2.936,136.22,136.13,46.0952151]
[1642511853079,2.936,136.22,136.14,0.25]
[1642511853478,3.96933229,136.21,136.14,0.25]
[1642511854183,3.96933229,136.21,136.15,13.417]
[1642511854379,3.96933229,136.21,136.15,21.39]
[1642511854581,3.96933229,136.21,136.16,0.25]
[1642511854779,36.56764951,136.2,136.17,2.936]
[1642511854979,36.56764951,136.2,136.18,6.06439994]
[1642511855604,2.936,136.23,136.18,6.06439994]
[1642511856609,2.936,136.23,136.18,43.11771871]
[1642511857006,51.29014957,136.24,136.18,6.06439994]
[1642511857207,2.936,136.23,136.18,6.06439994]
[1642511857405,2.936,136.23,136.16,10.73]
[1642511857406,13.9515,136.23,136.16,10.73]
[1642511858107,13.9515,136.23,136.16,59.94309378]
[1642511859413,4.06187755,136.22,136.16,59.94309378]
[1642511860214,13.9515,136.23,136.16,59.94309378]
[1642511860812,13.9515,136.23,136.16,10.73]
[1642511861015,6.25,136.22,136.13,2.936]
[1642511861214,11.0186,136.19,136.12,2.936]
[1642511861417,10.29604269,136.22,136.09,33.6555]
[1642511861418,2.936,136.18,136.09,33.6555]
[1642511861612,2.936,136.2,136.09,33.6555]
[1642511861818,38.7759874,136.2,136.1,44.90301848]
[1642511862017,1.4498725,136.17,136.11,10.48]
[1642511862213,1.4498725,136.17,136.11,21.4974]
[1642511862613,1.4498725,136.17,136.12,0.25]
[1642511863213,1.4498725,136.17,136.13,24.434]
[1642511863418,1.4498725,136.17,136.13,21.496]
[1642511863613,1.4498725,136.17,136.14,0.25]
[1642511863813,1.4498725,136.17,136.15,3.03219997]
[1642511864915,1.4498725,136.17,136.16,3.03219997]
[1642511865117,1.4498725,136.17,136.15,3.03219997]
[1642511865315,1.4498725,136.17,136.14,2.936]
[1642511865515,1.4498725,136.17,136.11,10.48]
[1642511866118,39.04974672,136.16,136.11,10.48]
[1642511866318,41.98774672,136.16,136.11,10.48]
[1642511867020,2.938,136.16,136.11,10.48]
[1642511867420,12.4695725,136.17,136.11,10.48]
[1642511867619,2.938,136.16,136.11,10.48]
[1642511868823,1.4498725,136.17,136.11,10.48]
[1642511869228,42.75811345,136.17,136.11,10.48]
[1642511869427,2.938,136.16,136.09,23.1755]
[1642511869630,11.0222,136.15,136.06,10.48]
[1642511869825,2.938,136.14,136.06,10.48]
[1642511870226,2.939,136.16,136.07,38.12419475]
[1642511870826,2.939,136.16,136.06,10.48]
[1642511871035,11.0235,136.13,136.04,10.48]
[1642511871226,3.189,136.12,136.04,10.48]
[1642511871426,76.359,136.12,136.04,10.48]
[1642511871627,73.42,136.12,136.04,10.48]
[1642511871828,52.53235064,136.11,136.04,50.06332482]
[1642511872427,11.0254,136.1,136.04,50.06332482]
[1642511872728,1.4498725,136.09,136.04,50.06332482]
[1642511873328,40.71773737,136.08,136.01,2.938]
[1642511873527,40.71773737,136.08,135.99,23.2]
[1642511873528,43.90773737,136.08,136.0,10.48]
[1642511873729,43.90773737,136.08,136.0,15.48]
[1642511873929,11.028,136.07,136.0,15.48]
[1642511874128,2.94,136.06,136.0,15.48]
[1642511874328,39.35405024,136.05,136.0,15.48]
[1642511874528,2.94,136.07,136.0,15.48]
[1642511874730,2.94,136.05,136.0,15.48]
[1642511874929,2.94,136.07,136.0,15.48]
[1642511875530,11.0294,136.05,136.0,15.48]
[1642511875728,13.9694,136.05,136.0,15.48]
[1642511875929,2.94,136.05,136.0,15.48]
[1642511876529,2.94,136.07,136.0,15.48]
[1642511877529,13.9684,136.07,136.0,15.48]
[1642511878730,11.0284,136.07,136.0,15.48]
[1642511879234,13.9668,136.08,136.0,15.48]
[1642511880033,2.94,136.08,136.0,26.5064]
[1642511881034,36.64252305,136.07,136.0,15.48]
[1642511881235,2.94,136.06,136.0,9.48]
[1642511881434,2.94,136.06,135.97,34.1446]
[1642511881634,11.0309,136.03,135.97,10.48]
[1642511882260,48.56865008,136.02,135.97,10.48]
[1642511882463,51.75965008,136.02,135.95,2.941]
[1642511883061,53.20952258,136.02,135.95,2.941]
[1642511883461,11.0337,136.01,135.95,2.941]
[1642511883663,2.941,136.0,135.95,2.941]
[1642511883864,7.894,136.0,135.95,2.941]
[1642511884064,2.941,135.99,135.95,2.941]
[1642511884466,46.6169476,135.99,135.95,2.941]
[1642511884664,2.941,135.98,135.95,2.941]
[1642511886070,2.941,135.98,135.9,45.31430715]
[1642511886467,11.036,135.97,135.9,45.31430715]
[1642511886668,35.89754118,135.96,135.9,45.31430715]
[1642511887067,35.89754118,135.96,135.9,3.041]
[1642511887267,2.942,135.95,135.9,0.1]
[1642511888068,2.942,135.95,135.9,36.51285154]
[1642511888567,11.0375,135.95,135.9,36.51285154]